[Event "RUS-ch Boys U21 2021"]
[Site "Loo"]
[Date "2021.04.27"]
[Round "7.5"]
[White "Obgolts, Erik"]
[Black "Shubin, Kirill"]
[Result "0-1"]
[ECO "B32"]
[WhiteElo "2414"]
[BlackElo "2466"]
[Annotator "RC"]
[PlyCount "68"]
[EventDate "2021.04.21"]
[EventType "swiss"]
[EventCountry "RUS"]
[SourceTitle "playchess.com"]
[Source "ChessBase"]
[SourceQuality "1"]
[TimeControl "40/5400+30:1800+30"]

1. e4 {[%emt 0:00:00]} c5 {[%emt 0:00:00]} 2. Nf3 {[%emt 0:00:00]} Nc6 {[%emt 0:00:00]} 3. d4 {[%emt 0:00:15]} cxd4 {[%emt 0:00:00]} 4. Nxd4 {[%emt 0:00:03]} Qb6 {[%emt 0:00:00]} 5. Nb3 {[%emt 0:01:04]} Nf6 {[%emt 0:00:00]} 6. Nc3 {[%emt 0:02:06]} e6 {[%emt 0:00:00]} 7. Be3 {[%emt 0:05:19]} Qc7 {[%emt 0:00:14]} 8. a3 {[%emt 0:01:54]} a6 {[%emt 0:02:41]} 9. f4 {[%emt 0:08:29]} d6 {[%emt 0:00:34]} 10. Bd3 {[%emt 0:01:33]} b5 {[%emt 0:09:28]} 11. Qe2 {[%emt 0:09:56]} Be7 {[%emt 0:05:51]} 12. O-O {[%emt 0:00:15]} Bb7 {[%emt 0:02:44]} 13. Rae1 {[%emt 0:11:13]} O-O {[%emt 0:08:35]} 14. g4 {[%emt 0:05:24]} Nd7 {[%emt 0:05:25]} 15. Qf2 {[%emt 0:03:41]} b4 {[%emt 0:04:36]} 16. axb4 {[%emt 0:05:13]} Nxb4 {[%emt 0:00:17]} 17. g5 {[%emt 0:00:57]} Nc5 {[%emt 0:17:56]} 18. Nxc5 {[%emt 0:01:11]} dxc5 {[%emt 0:00:57]} 19. Bc4 {[%emt 0:00:17]} Rad8 {[%emt 0:05:22]} 20. b3 {[%emt 0:01:54]} Rd4 {[%emt 0:04:38]} 21. Bxd4 {[%emt 0:13:55]} cxd4 {[%emt 0:00:04]} 22. Na4 {[%emt 0:00:11]} Kh8 {[%emt 0:02:16]} 23. Nb2 {[%emt 0:06:21]} f5 {[%emt 0:00:10]} 24. gxf6 {[%emt 0:04:36]} gxf6 {[%emt 0:00:28]} 25. h3 {[%emt 0:03:44]} f5 {[%emt 0:02:23]} 26. Bxe6 {[%emt 0:02:06]} Nxc2 {[%emt 0:06:53]} 27. Bxf5 {[%emt 0:09:00]} Nxe1 {[%emt 0:09:54]} 28. Rxe1 {[%emt 0:00:17]} Qc3 {[%emt 0:00:27]} 29. Rd1 {[%emt 0:02:08]} Rxf5 {[%emt 0:02:34]} 30. exf5 {[%emt 0:00:04]} Qxh3 {[%emt 0:00:04]} 31. Qxd4+ {[%emt 0:00:38]} Kg8 {[%emt 0:00:04]} 32. Qc4+ {[%emt 0:01:42]} Kf8 {[%emt 0:00:05]} 33. Rd8+ {[%emt 0:01:02]} Bxd8 {[%emt 0:00:04]} 34. Qb4+ {[%emt 0:00:00]} Be7 {[%emt 0:00:03]} 0-1

[Event "RUS-ch Boys U21 2021"]
[Site "Loo"]
[Date "2021.04.27"]
[Round "7.6"]
[White "Makarian, Rudik"]
[Black "Vetokhin, Savva"]
[Result "1-0"]
[ECO "A40"]
[WhiteElo "2468"]
[BlackElo "2261"]
[Annotator "ChessBase"]
[PlyCount "63"]
[EventDate "2021.04.21"]
[EventType "swiss"]
[EventCountry "RUS"]
[SourceTitle "playchess.com"]
[Source "ChessBase"]
[SourceQuality "1"]
[TimeControl "40/5400+30:1800+30"]

1. d4 {[%emt 0:00:00]} Nf6 {[%emt 0:00:00]} 2. c4 {[%emt 0:00:05]} e6 {[%emt 0:00:00]} 3. g3 {[%emt 0:00:00]} d5 {[%emt 0:00:00]} 4. Nf3 {[%emt 0:00:00]} Bb4+ {[%emt 0:00:04]} 5. Bd2 {[%emt 0:00:00]} Be7 {[%emt 0:00:05]} 6. Bg2 {[%emt 0:00:05]} O-O {[%emt 0:00:15]} 7. Qc2 {[%emt 0:00:58]} c6 {[%emt 0:00:27]} 8. O-O {[%emt 0:00:28]} b6 {[%emt 0:00:18]} 9. Bf4 {[%emt 0:00:12]} Nbd7 {[%emt 0:00:08]} 10. Nbd2 {[%emt 0:00:34]} Bb7 {[%emt 0:01:30]} 11. e3 {[%emt 0:08:07]} c5 {[%emt 0:05:42]} 12. dxc5 {[%emt 0:00:24]} bxc5 {[%emt 0:01:14]} 13. cxd5 {[%emt 0:17:40]} exd5 {[%emt 0:02:38]} 14. Nh4 {[%emt 0:00:15]} g6 {[%emt 0:18:21]} 15. Rfd1 {[%emt 0:00:10]} Re8 {[%emt 0:01:27]} 16. Nc4 {[%emt 0:09:11]} Bc6 {[%emt 0:06:18]} 17. Nd6 {[%emt 0:09:14]} Bxd6 {[%emt 0:04:21]} 18. Bxd6 {[%emt 0:00:02]} Ne4 {[%emt 0:00:09]} 19. Bf4 {[%emt 0:05:20]} g5 {[%emt 0:00:31]} 20. f3 {[%emt 0:00:11]} gxf4 {[%emt 0:00:48]} 21. fxe4 {[%emt 0:00:11]} fxg3 {[%emt 0:01:04]} 22. Nf5 {[%emt 0:06:07]} dxe4 {[%emt 0:05:11]} 23. Rd6 {[%emt 0:02:05]} Re6 {[%emt 0:02:54]} 24. Rxc6 {[%emt 0:04:50]} Rxc6 {[%emt 0:00:05]} 25. Qxe4 {[%emt 0:00:04]} Rf6 {[%emt 0:01:59]} 26. Rd1 {[%emt 0:00:10]} Qf8 {[%emt 0:22:17]} 27. Qxa8 {[%emt 0:01:00]} Rxf5 {[%emt 0:00:17]} 28. Rxd7 {[%emt 0:00:15]} gxh2+ {[%emt 0:00:10]} 29. Kxh2 {[%emt 0:00:31]} Qxa8 {[%emt 0:00:15]} 30. Bxa8 {[%emt 0:00:02]} Rf2+ {[%emt 0:00:09]} 31. Kg3 {[%emt 0:00:08]} Rxb2 {[%emt 0:00:06]} 32. Bd5 {[%emt 0:00:07]} 1-0

[Event "RUS-ch Boys U21 2021"]
[Site "Loo"]
[Date "2021.04.27"]
[Round "7.7"]
[White "Makoveev, Ilya"]
[Black "Makovich, Andrey"]
[Result "0-1"]
[ECO "B20"]
[WhiteElo "2315"]
[BlackElo "2171"]
[Annotator "NA"]
[PlyCount "58"]
[EventDate "2021.04.21"]
[EventType "swiss"]
[EventCountry "RUS"]
[SourceTitle "playchess.com"]
[Source "ChessBase"]
[SourceQuality "1"]
[TimeControl "40/5400+30:1800+30"]

1. e4 {[%emt 0:01:31]} c5 {[%emt 0:00:00]} 2. b3 {[%emt 0:01:03]} Nc6 {[%emt 0:00:10]} 3. Bb2 {[%emt 0:00:06]} e5 {[%emt 0:02:29]} 4. f4 {[%emt 0:10:52]} d6 {[%emt 0:07:15]} 5. Nc3 {[%emt 0:00:38]} Nf6 {[%emt 0:00:10]} 6. Bb5 {[%emt 0:03:44]} Bd7 {[%emt 0:07:06]} 7. Nf3 {[%emt 0:10:21]} Nd4 {[%emt 0:03:38]} 8. Bxd7+ {[%emt 0:00:48]} Qxd7 {[%emt 0:00:27]} 9. fxe5 {[%emt 0:07:04]} Nxf3+ {[%emt 0:03:58]} 10. Qxf3 {[%emt 0:00:02]} dxe5 {[%emt 0:00:00]} 11. O-O {[%emt 0:05:07]} Bd6 {[%emt 0:08:57]} 12. d3 {[%emt 0:04:27]} Qg4 {[%emt 0:12:51]} 13. Qe3 {[%emt 0:04:35]} b6 {[%emt 0:05:58]} 14. Rf5 {[%emt 0:04:30]} O-O {[%emt 0:06:22]} 15. Raf1 {[%emt 0:16:58]} c4 {[%emt 0:02:00]} 16. Kh1 {[%emt 0:01:54]} Bc5 {[%emt 0:03:37]} 17. Qd2 {[%emt 0:03:15]} cxd3 {[%emt 0:01:23]} 18. Rxe5 {[%emt 0:01:38]} Bd4 {[%emt 0:05:28]} 19. Rg5 {[%emt 0:02:55]} Qh4 {[%emt 0:02:45]} 20. cxd3 {[%emt 0:02:47]} Ng4 {[%emt 0:04:24]} 21. Qf4 {[%emt 0:10:08]} h5 {[%emt 0:08:02]} 22. h3 {[%emt 0:04:01]} f6 {[%emt 0:00:50]} 23. Rxg4 {[%emt 0:02:34]} hxg4 {[%emt 0:00:04]} 24. Nd5 {[%emt 0:00:26]} Bxb2 {[%emt 0:00:44]} 25. Ne7+ {[%emt 0:00:03]} Kf7 {[%emt 0:00:04]} 26. Nf5 {[%emt 0:01:01]} Qh7 {[%emt 0:02:01]} 27. e5 {[%emt 0:00:30]} Kg8 {[%emt 0:00:27]} 28. Ne7+ {[%emt 0:00:29]} Kh8 {[%emt 0:00:10]} 29. Qxg4 {[%emt 0:00:04]} g5 {[%emt 0:00:03]} 0-1

[Event "RUS-ch Boys U21 2021"]
[Site "Loo"]
[Date "2021.04.27"]
[Round "7.8"]
[White "Pogosyan, Stefan"]
[Black "Koliev, Irlan"]
[Result "1-0"]
[ECO "A01"]
[WhiteElo "2444"]
[BlackElo "2023"]
[Annotator "NA"]
[PlyCount "59"]
[EventDate "2021.04.21"]
[EventType "swiss"]
[EventCountry "RUS"]
[SourceTitle "playchess.com"]
[Source "ChessBase"]
[SourceQuality "1"]
[TimeControl "40/5400+30:1800+30"]

1. b3 {[%emt 0:04:27]} e5 {[%emt 0:00:46]} 2. Bb2 {[%emt 0:00:05]} Nc6 {[%emt 0:00:05]} 3. e3 {[%emt 0:00:04]} d5 {[%emt 0:00:29]} 4. Bb5 {[%emt 0:00:20]} Bd6 {[%emt 0:00:07]} 5. Nf3 {[%emt 0:00:52]} Qe7 {[%emt 0:00:53]} 6. d4 {[%emt 0:01:03]} e4 {[%emt 0:10:54]} 7. Ne5 {[%emt 0:00:32]} Bxe5 {[%emt 0:00:07]} 8. dxe5 {[%emt 0:00:32]} Be6 {[%emt 0:00:02]} 9. Bxc6+ {[%emt 0:04:30]} bxc6 {[%emt 0:00:07]} 10. Qd4 {[%emt 0:00:08]} Qg5 {[%emt 0:09:28]} 11. Qc5 {[%emt 0:04:32]} Ne7 {[%emt 0:00:32]} 12. Ba3 {[%emt 0:00:22]} Bg4 {[%emt 0:02:48]} 13. h3 {[%emt 0:01:31]} Bd7 {[%emt 0:00:12]} 14. Nc3 {[%emt 0:00:24]} Qxe5 {[%emt 0:00:53]} 15. O-O-O {[%emt 0:02:42]} Rd8 {[%emt 0:11:26]} 16. Rd4 {[%emt 0:07:50]} f6 {[%emt 0:05:40]} 17. Rhd1 {[%emt 0:02:14]} Kf7 {[%emt 0:10:10]} 18. Kb1 {[%emt 0:17:29]} Nc8 {[%emt 0:06:57]} 19. Nxd5 {[%emt 0:05:22]} Be8 {[%emt 0:28:35]} 20. Nc3 {[%emt 0:00:31]} Rxd4 {[%emt 0:00:36]} 21. Rxd4 {[%emt 0:00:18]} Qxc5 {[%emt 0:00:06]} 22. Bxc5 {[%emt 0:00:07]} f5 {[%emt 0:00:07]} 23. Rd8 {[%emt 0:00:29]} Nb6 {[%emt 0:00:05]} 24. a4 {[%emt 0:00:07]} Rg8 {[%emt 0:04:24]} 25. a5 {[%emt 0:00:59]} Nd7 {[%emt 0:00:05]} 26. Bxa7 {[%emt 0:00:15]} Ke7 {[%emt 0:00:05]} 27. Rc8 {[%emt 0:00:25]} Kd6 {[%emt 0:00:18]} 28. a6 {[%emt 0:00:22]} Bf7 {[%emt 0:01:34]} 29. Rxg8 {[%emt 0:00:04]} Bxg8 {[%emt 0:00:05]} 30. Bc5+ {[%emt 0:00:03]} 1-0

[Event "RUS-ch Boys U21 2021"]
[Site "Loo"]
[Date "2021.04.27"]
[Round "7.9"]
[White "Kyshtymov, Daniil"]
[Black "Zhafyarov, Adel"]
[Result "0-1"]
[ECO "C42"]
[WhiteElo "2137"]
[BlackElo "2252"]
[Annotator "NA"]
[PlyCount "104"]
[EventDate "2021.04.21"]
[EventType "swiss"]
[EventCountry "RUS"]
[SourceTitle "playchess.com"]
[Source "ChessBase"]
[SourceQuality "1"]
[TimeControl "40/5400+30:1800+30"]

1. e4 {[%emt 0:00:23]} e5 {[%emt 0:01:43]} 2. Nf3 {[%emt 0:00:09]} Nf6 {[%emt 0:00:04]} 3. Nxe5 {[%emt 0:00:14]} d6 {[%emt 0:00:07]} 4. Nf3 {[%emt 0:00:10]} Nxe4 {[%emt 0:00:08]} 5. Nc3 {[%emt 0:00:11]} Nf6 {[%emt 0:00:03]} 6. d4 {[%emt 0:00:23]} Be7 {[%emt 0:00:03]} 7. h3 {[%emt 0:01:06]} O-O {[%emt 0:00:29]} 8. Be3 {[%emt 0:00:32]} Re8 {[%emt 0:00:05]} 9. Bd3 {[%emt 0:02:07]} a6 {[%emt 0:05:09]} 10. Qd2 {[%emt 0:15:39]} Nbd7 {[%emt 0:00:15]} 11. g4 {[%emt 0:22:57]} Nb6 {[%emt 0:06:14]} 12. O-O-O {[%emt 0:06:56]} Be6 {[%emt 0:06:49]} 13. Ng5 {[%emt 0:12:32]} Bc4 {[%emt 0:00:28]} 14. Nce4 {[%emt 0:15:11]} Nxe4 {[%emt 0:05:05]} 15. Nxe4 {[%emt 0:02:35]} d5 {[%emt 0:04:50]} 16. Nc5 {[%emt 0:02:17]} Bxd3 {[%emt 0:00:22]} 17. Qxd3 {[%emt 0:00:40]} Nc4 {[%emt 0:00:06]} 18. Bf4 {[%emt 0:02:16]} b6 {[%emt 0:01:03]} 19. Nb3 {[%emt 0:00:10]} Bg5 {[%emt 0:02:00]} 20. Bxg5 {[%emt 0:08:50]} Qxg5+ {[%emt 0:00:02]} 21. Nd2 {[%emt 0:02:07]} Re6 {[%emt 0:04:44]} 22. b3 {[%emt 0:01:06]} Nd6 {[%emt 0:13:31]} 23. Kb2 {[%emt 0:00:12]} Qf4 {[%emt 0:00:47]} 24. Rhf1 {[%emt 0:02:08]} Rae8 {[%emt 0:00:36]} 25. Nb1 {[%emt 0:01:05]} b5 {[%emt 0:00:42]} 26. Nc3 {[%emt 0:00:31]} c6 {[%emt 0:00:01]} 27. a3 {[%emt 0:00:26]} g6 {[%emt 0:01:07]} 28. Qd2 {[%emt 0:00:34]} Qf3 {[%emt 0:01:21]} 29. Qh6 {[%emt 0:00:30]} a5 {[%emt 0:00:45]} 30. Rd3 {[%emt 0:00:27]} Qg2 {[%emt 0:00:22]} 31. Qc1 {[%emt 0:00:33]} b4 {[%emt 0:04:54]} 32. axb4 {[%emt 0:00:05]} axb4 {[%emt 0:00:01]} 33. Na2 {[%emt 0:00:33]} Ne4 {[%emt 0:00:05]} 34. f3 {[%emt 0:00:52]} Nf2 {[%emt 0:00:08]} 35. Rd2 {[%emt 0:00:27]} Re2 {[%emt 0:00:02]} 36. Rxe2 {[%emt 0:00:29]} Rxe2 {[%emt 0:00:02]} 37. Nxb4 {[%emt 0:00:27]} Qxh3 {[%emt 0:01:34]} 38. Kb1 {[%emt 0:00:38]} Qxf3 {[%emt 0:00:33]} 39. Nxc6 {[%emt 0:00:27]} Qc3 {[%emt 0:00:26]} 40. Ne5 {[%emt 0:00:00]} Qxd4 {[%emt 0:00:00]} 41. Nf3 {[%emt 0:03:51]} Qc3 {[%emt 0:07:07]} 42. Ng1 {[%emt 0:08:07]} Rd2 {[%emt 0:00:04]} 43. Qb2 {[%emt 0:05:13]} Qxb2+ {[%emt 0:00:49]} 44. Kxb2 {[%emt 0:00:02]} Nxg4 {[%emt 0:00:04]} 45. Rf3 {[%emt 0:01:33]} d4 {[%emt 0:00:49]} 46. Nh3 {[%emt 0:03:14]} Ne3 {[%emt 0:00:04]} 47. b4 {[%emt 0:01:22]} Rxc2+ {[%emt 0:00:05]} 48. Kb3 {[%emt 0:00:14]} Rc3+ {[%emt 0:01:06]} 49. Ka4 {[%emt 0:00:07]} Nd5 {[%emt 0:01:05]} 50. Rxc3 {[%emt 0:00:43]} dxc3 {[%emt 0:00:01]} 51. Nf2 {[%emt 0:00:11]} f5 {[%emt 0:00:53]} 52. Kb5 {[%emt 0:00:37]} Nf4 {[%emt 0:00:19]} 0-1

[Event "RUS-ch Boys U21 2021"]
[Site "Loo"]
[Date "2021.04.27"]
[Round "7.10"]
[White "Marchuk, Rostislav"]
[Black "Akhtariev, Andrey"]
[Result "1-0"]
[ECO "A46"]
[WhiteElo "2080"]
[BlackElo "2190"]
[Annotator "NA"]
[PlyCount "77"]
[EventDate "2021.04.21"]
[EventType "swiss"]
[EventCountry "RUS"]
[SourceTitle "playchess.com"]
[Source "ChessBase"]
[SourceQuality "1"]
[TimeControl "40/5400+30:1800+30"]

1. d4 {[%emt 0:00:00]} Nf6 {[%emt 0:00:00]} 2. Nf3 {[%emt 0:00:00]} e6 {[%emt 0:00:00]} 3. Bf4 {[%emt 0:00:00]} b6 {[%emt 0:00:00]} 4. e3 {[%emt 0:00:00]} Bb7 {[%emt 0:00:00]} 5. Nbd2 {[%emt 0:00:00]} d6 {[%emt 0:00:22]} 6. a4 {[%emt 0:00:17]} a5 {[%emt 0:00:38]} 7. Bb5+ {[%emt 0:00:33]} Nbd7 {[%emt 0:00:17]} 8. h3 {[%emt 0:00:22]} Qe7 {[%emt 0:04:12]} 9. O-O {[%emt 0:01:54]} h6 {[%emt 0:01:55]} 10. Qe2 {[%emt 0:00:53]} c6 {[%emt 0:00:17]} 11. Bc4 {[%emt 0:00:34]} e5 {[%emt 0:01:11]} 12. dxe5 {[%emt 0:01:59]} dxe5 {[%emt 0:00:05]} 13. Bh2 {[%emt 0:03:00]} g6 {[%emt 0:00:35]} 14. Ba2 {[%emt 0:07:58]} Ba6 {[%emt 0:01:59]} 15. Bc4 {[%emt 0:00:45]} Bb7 {[%emt 0:00:23]} 16. Rfd1 {[%emt 0:06:11]} Bg7 {[%emt 0:05:13]} 17. Ba2 {[%emt 0:02:18]} e4 {[%emt 0:09:20]} 18. Nd4 {[%emt 0:02:01]} Ne5 {[%emt 0:04:36]} 19. Ne6 {[%emt 0:15:36]} fxe6 {[%emt 0:07:21]} 20. Bxe5 {[%emt 0:00:16]} Nd5 {[%emt 0:07:38]} 21. Bxg7 {[%emt 0:01:32]} Qxg7 {[%emt 0:00:11]} 22. Qg4 {[%emt 0:01:04]} O-O-O {[%emt 0:07:56]} 23. Qxe6+ {[%emt 0:05:24]} Kb8 {[%emt 0:01:23]} 24. Bxd5 {[%emt 0:01:50]} Rxd5 {[%emt 0:00:34]} 25. Nc4 {[%emt 0:03:06]} Rhd8 {[%emt 0:04:11]} 26. Rxd5 {[%emt 0:01:29]} Rxd5 {[%emt 0:01:10]} 27. c3 {[%emt 0:03:53]} Ka7 {[%emt 0:06:44]} 28. Qxe4 {[%emt 0:02:34]} Qf7 {[%emt 0:03:49]} 29. Qc2 {[%emt 0:14:40]} c5 {[%emt 0:02:24]} 30. e4 {[%emt 0:03:18]} Rg5 {[%emt 0:07:09]} 31. Qd3 {[%emt 0:00:27]} Qf4 {[%emt 0:02:08]} 32. Re1 {[%emt 0:02:46]} Qc7 {[%emt 0:12:33]} 33. Nd6 Kb8 34. f4 {[%emt 0:01:59]} Rh5 {[%emt 0:00:43]} 35. Nb5 {[%emt 0:00:38]} Qe7 {[%emt 0:00:57]} 36. Qd6+ {[%emt 0:04:18]} Qxd6 {[%emt 0:00:13]} 37. Nxd6 {[%emt 0:00:02]} Bc6 {[%emt 0:00:06]} 38. e5 {[%emt 0:00:18]} Bxa4 {[%emt 0:00:28]} 39. Kh2 {[%emt 0:00:33]} 1-0

[Event "RUS-ch Boys U21 2021"]
[Site "Loo"]
[Date "2021.04.27"]
[Round "7.11"]
[White "Marchenko, Nikolay"]
[Black "Babanin, Gleb"]
[Result "0-1"]
[ECO "D10"]
[WhiteElo "2062"]
[BlackElo "2123"]
[Annotator "NA"]
[PlyCount "114"]
[EventDate "2021.04.21"]
[EventType "swiss"]
[EventCountry "RUS"]
[SourceTitle "playchess.com"]
[Source "ChessBase"]
[SourceQuality "1"]
[TimeControl "40/5400+30:1800+30"]

1. d4 {[%emt 0:00:00]} d5 {[%emt 0:00:00]} 2. c4 {[%emt 0:00:00]} c6 {[%emt 0:00:00]} 3. Nc3 {[%emt 0:00:00]} Nf6 {[%emt 0:00:00]} 4. e3 {[%emt 0:00:00]} Bf5 {[%emt 0:00:00]} 5. cxd5 {[%emt 0:00:24]} cxd5 {[%emt 0:00:00]} 6. Qb3 {[%emt 0:00:03]} Nc6 {[%emt 0:00:00]} 7. Qxb7 {[%emt 0:07:55]} Bd7 {[%emt 0:00:00]} 8. Qb3 {[%emt 0:03:20]} Rb8 {[%emt 0:00:01]} 9. Qd1 {[%emt 0:00:05]} e5 {[%emt 0:00:04]} 10. dxe5 {[%emt 0:04:45]} Nxe5 {[%emt 0:00:04]} 11. Nf3 {[%emt 0:00:45]} Nxf3+ {[%emt 0:04:38]} 12. gxf3 {[%emt 0:00:49]} Bd6 {[%emt 0:00:39]} 13. Bg2 {[%emt 0:06:31]} O-O {[%emt 0:03:11]} 14. O-O {[%emt 0:00:29]} Qc7 {[%emt 0:05:21]} 15. f4 {[%emt 0:00:39]} Rfd8 {[%emt 0:00:10]} 16. Qd3 {[%emt 0:20:02]} Bc6 {[%emt 0:20:58]} 17. Bd2 {[%emt 0:14:30]} d4 {[%emt 0:04:32]} 18. exd4 {[%emt 0:00:18]} Bxg2 {[%emt 0:00:08]} 19. Kxg2 {[%emt 0:00:04]} Bxf4 {[%emt 0:00:07]} 20. Bxf4 {[%emt 0:04:50]} Qxf4 {[%emt 0:00:05]} 21. Qg3 {[%emt 0:01:07]} Qf5 {[%emt 0:15:42]} 22. Qe5 {[%emt 0:08:13]} Qg6+ {[%emt 0:00:50]} 23. Qg3 {[%emt 0:00:13]} Rxb2 {[%emt 0:02:33]} 24. Qxg6 {[%emt 0:11:34]} hxg6 {[%emt 0:00:06]} 25. Rab1 {[%emt 0:00:02]} Rc2 {[%emt 0:25:23]} 26. Rfc1 {[%emt 0:00:50]} Rd2 {[%emt 0:00:48]} 27. Rd1 {[%emt 0:00:16]} R8xd4 {[%emt 0:00:04]} 28. Rxd2 {[%emt 0:00:15]} Rxd2 {[%emt 0:00:04]} 29. Rb8+ {[%emt 0:00:06]} Kh7 {[%emt 0:00:03]} 30. Rb7 {[%emt 0:00:04]} Rd3 {[%emt 0:01:04]} 31. Nb1 {[%emt 0:02:43]} Rd7 {[%emt 0:02:10]} 32. Rxd7 {[%emt 0:03:20]} Nxd7 {[%emt 0:00:04]} 33. Kf3 {[%emt 0:00:03]} f5 {[%emt 0:00:39]} 34. Ke3 {[%emt 0:00:08]} Kh6 {[%emt 0:00:11]} 35. Kd4 {[%emt 0:02:52]} Kg5 {[%emt 0:00:56]} 36. Nd2 {[%emt 0:00:22]} Kf4 {[%emt 0:00:51]} 37. Kd5 {[%emt 0:04:58]} Nf6+ {[%emt 0:00:10]} 38. Ke6 {[%emt 0:00:23]} Ne4 {[%emt 0:00:12]} 39. Nxe4 {[%emt 0:01:46]} fxe4 {[%emt 0:00:19]} 40. a4 {[%emt 0:00:00]} g5 {[%emt 0:00:00]} 41. a5 {[%emt 0:00:55]} a6 {[%emt 0:01:06]} 42. Kd5 {[%emt 0:00:23]} Kf3 {[%emt 0:00:07]} 43. Ke5 {[%emt 0:00:12]} g4 {[%emt 0:00:16]} 44. Kf5 {[%emt 0:00:42]} g5 {[%emt 0:00:39]} 45. Ke5 {[%emt 0:00:27]} Kxf2 {[%emt 0:00:09]} 46. Kxe4 {[%emt 0:00:04]} g3 {[%emt 0:00:04]} 47. hxg3 {[%emt 0:00:08]} Kxg3 {[%emt 0:00:03]} 48. Kd5 {[%emt 0:00:04]} Kf4 {[%emt 0:00:17]} 49. Kc6 {[%emt 0:00:54]} g4 {[%emt 0:00:11]} 50. Kb6 {[%emt 0:00:05]} g3 {[%emt 0:00:03]} 51. Kxa6 {[%emt 0:00:06]} g2 {[%emt 0:00:03]} 52. Kb7 {[%emt 0:00:04]} g1=Q {[%emt 0:00:06]} 53. a6 {[%emt 0:00:01]} Qb1+ {[%emt 0:00:05]} 54. Ka8 {[%emt 0:00:53]} Qe4+ {[%emt 0:00:04]} 55. Kb8 {[%emt 0:00:19]} Qe5+ {[%emt 0:00:25]} 56. Ka8 {[%emt 0:00:10]} Qd5+ {[%emt 0:00:06]} 57. Kb8 {[%emt 0:00:05]} Qb5+ {[%emt 0:00:03]} 0-1

[Event "RUS-ch Boys U21 2021"]
[Site "Loo"]
[Date "2021.04.27"]
[Round "7.12"]
[White "Shemyakin, Valeriy"]
[Black "Shpakov, Vladimir"]
[Result "1-0"]
[ECO "A07"]
[WhiteElo "2168"]
[BlackElo "1871"]
[Annotator "NA"]
[PlyCount "65"]
[EventDate "2021.04.21"]
[EventType "swiss"]
[EventCountry "RUS"]
[SourceTitle "playchess.com"]
[Source "ChessBase"]
[SourceQuality "1"]
[TimeControl "40/5400+30:1800+30"]

1. Nf3 {[%emt 0:06:04]} d5 {[%emt 0:00:00]} 2. g3 {[%emt 0:00:03]} Nf6 {[%emt 0:00:00]} 3. Bg2 {[%emt 0:00:05]} c6 {[%emt 0:02:26]} 4. O-O {[%emt 0:00:17]} Bg4 {[%emt 0:00:14]} 5. d4 {[%emt 0:00:19]} e6 {[%emt 0:00:13]} 6. Ne5 {[%emt 0:00:59]} Bf5 {[%emt 0:01:03]} 7. c4 {[%emt 0:00:27]} Nbd7 {[%emt 0:01:05]} 8. Nc3 {[%emt 0:01:35]} Nxe5 {[%emt 0:01:29]} 9. dxe5 {[%emt 0:00:11]} Nd7 {[%emt 0:00:17]} 10. f4 {[%emt 0:02:06]} Bc5+ {[%emt 0:02:17]} 11. Kh1 {[%emt 0:00:18]} h5 {[%emt 0:00:32]} 12. cxd5 {[%emt 0:11:03]} exd5 {[%emt 0:09:35]} 13. e4 {[%emt 0:06:30]} Bg4 {[%emt 0:00:08]} 14. Bf3 {[%emt 0:03:40]} Bxf3+ {[%emt 0:00:28]} 15. Qxf3 {[%emt 0:00:07]} d4 {[%emt 0:00:16]} 16. Ne2 {[%emt 0:00:17]} Qb6 {[%emt 0:01:17]} 17. Rd1 {[%emt 0:08:31]} O-O-O {[%emt 0:00:46]} 18. b3 {[%emt 0:02:56]} Be7 {[%emt 0:14:38]} 19. Rxd4 {[%emt 0:27:24]} h4 {[%emt 0:00:39]} 20. g4 {[%emt 0:00:41]} Bc5 {[%emt 0:00:51]} 21. Rd3 {[%emt 0:00:55]} g5 {[%emt 0:18:50]} 22. Bb2 {[%emt 0:00:53]} Rhg8 {[%emt 0:01:37]} 23. Rad1 {[%emt 0:02:14]} Qa5 {[%emt 0:01:22]} 24. a3 {[%emt 0:04:13]} Bb6 {[%emt 0:00:40]} 25. b4 {[%emt 0:02:46]} Qb5 {[%emt 0:00:10]} 26. fxg5 {[%emt 0:04:07]} h3 {[%emt 0:03:44]} 27. Rxd7 {[%emt 0:03:06]} Rxd7 {[%emt 0:03:25]} 28. Rxd7 {[%emt 0:00:06]} Qc4 {[%emt 0:00:20]} 29. Rd2 {[%emt 0:03:50]} Rxg5 {[%emt 0:00:50]} 30. Ng3 {[%emt 0:06:02]} Qe6 {[%emt 0:01:38]} 31. Nf5 {[%emt 0:00:23]} Kc7 {[%emt 0:00:23]} 32. Qxh3 {[%emt 0:01:12]} Qc4 {[%emt 0:00:25]} 33. Qd3 {[%emt 0:00:13]} 1-0

[Event "RUS-ch Boys U21 2021"]
[Site "Loo"]
[Date "2021.04.28"]
[Round "8.8"]
[White "Zhafyarov, Adel"]
[Black "Obgolts, Erik"]
[Result "1/2-1/2"]
[ECO "A45"]
[WhiteElo "2252"]
[BlackElo "2414"]
[Annotator "RC"]
[PlyCount "91"]
[EventDate "2021.04.21"]
[EventType "swiss"]
[EventCountry "RUS"]
[SourceTitle "playchess.com"]
[Source "ChessBase"]
[SourceQuality "1"]
[TimeControl "40/5400+30:1800+30"]

1. d4 {[%emt 0:00:00]} Nf6 {[%emt 0:00:00]} 2. Bf4 {[%emt 0:00:00]} d5 {[%emt 0:00:00]} 3. e3 {[%emt 0:00:00]} c5 {[%emt 0:00:00]} 4. c3 {[%emt 0:00:00]} Nc6 {[%emt 0:00:00]} 5. Nd2 {[%emt 0:00:00]} Bf5 {[%emt 0:00:47]} 6. Qb3 {[%emt 0:00:00]} Qd7 {[%emt 0:00:29]} 7. Ngf3 {[%emt 0:00:00]} c4 {[%emt 0:00:03]} 8. Qd1 {[%emt 0:00:04]} e6 {[%emt 0:01:10]} 9. Ne5 {[%emt 0:00:06]} Nxe5 {[%emt 0:01:56]} 10. Bxe5 {[%emt 0:00:02]} Ne4 {[%emt 0:14:34]} 11. Nxe4 {[%emt 0:26:08]} Bxe4 {[%emt 0:00:05]} 12. f3 {[%emt 0:07:14]} Bg6 {[%emt 0:00:23]} 13. a4 {[%emt 0:00:05]} f6 {[%emt 0:01:39]} 14. Bg3 {[%emt 0:00:09]} a6 {[%emt 0:20:09]} 15. b3 {[%emt 0:00:47]} cxb3 {[%emt 0:02:48]} 16. Qxb3 {[%emt 0:00:13]} Bd6 {[%emt 0:00:59]} 17. c4 {[%emt 0:13:02]} O-O {[%emt 0:04:10]} 18. c5 {[%emt 0:00:19]} Bxg3+ {[%emt 0:04:41]} 19. hxg3 {[%emt 0:00:01]} Qc7 {[%emt 0:10:55]} 20. Kf2 {[%emt 0:02:40]} Be8 {[%emt 0:01:38]} 21. Bd3 {[%emt 0:04:35]} g6 {[%emt 0:00:08]} 22. Rhb1 {[%emt 0:12:57]} Bc6 {[%emt 0:00:58]} 23. Qb6 {[%emt 0:00:16]} Qd7 {[%emt 0:05:19]} 24. Ra2 {[%emt 0:13:35]} Rf7 {[%emt 0:00:29]} 25. Rab2 {[%emt 0:00:31]} Re8 {[%emt 0:00:54]} 26. Bb5 {[%emt 0:02:01]} axb5 {[%emt 0:00:34]} 27. axb5 {[%emt 0:00:01]} e5 {[%emt 0:00:38]} 28. bxc6 {[%emt 0:00:37]} bxc6 {[%emt 0:00:04]} 29. Qa6 {[%emt 0:07:07]} Qe6 {[%emt 0:00:50]} 30. Rb8 {[%emt 0:03:22]} Rfe7 {[%emt 0:00:49]} 31. Rxe8+ {[%emt 0:02:30]} Rxe8 {[%emt 0:00:04]} 32. Qa4 {[%emt 0:00:12]} Re7 {[%emt 0:12:11]} 33. g4 {[%emt 0:01:44]} Kg7 {[%emt 0:01:12]} 34. Rb6 {[%emt 0:00:06]} exd4 {[%emt 0:00:32]} 35. Qxd4 {[%emt 0:00:02]} h6 {[%emt 0:00:41]} 36. Rb8 {[%emt 0:00:22]} Qe5 {[%emt 0:02:28]} 37. Qxe5 {[%emt 0:02:35]} fxe5 {[%emt 0:00:07]} 38. Rc8 {[%emt 0:00:20]} Re6 {[%emt 0:00:05]} 39. Rc7+ {[%emt 0:01:59]} Kf6 {[%emt 0:00:11]} 40. Rh7 {[%emt 0:00:00]} Re7 {[%emt 0:00:00]} 41. Rh8 {[%emt 0:11:15]} Kg7 {[%emt 0:05:10]} 42. Rd8 {[%emt 0:00:33]} Kf6 {[%emt 0:00:28]} 43. g3 {[%emt 0:04:34]} Kf7 {[%emt 0:02:38]} 44. Rc8 {[%emt 0:00:05]} Re6 {[%emt 0:00:17]} 45. Rc7+ {[%emt 0:00:29]} Ke8 {[%emt 0:07:03]} 46. Ke2 {[%emt 0:04:27]} 1/2-1/2